[Event "Early-Titled-Tuesday-Blitz-January-23-2024"]
[Site "Chess.com"]
[Date "2024.01.23"]
[Round "4"]
[White "Druid24"]
[Black "Egorov_Pavel"]
[Result "1-0"]
[WhiteElo "2702"]
[BlackElo "2498"]
[TimeControl "180+1"]
[EndTime "8:37:05 PST"]
[Termination "Druid24 won by resignation"]

1. e4 {[%clk 0:02:57.8]} 1... c5 {[%clk 0:02:58.1]} 2. Nf3 {[%clk 0:02:56.5]}
2... Nf6 {[%clk 0:02:58.5]} 3. e5 {[%clk 0:02:54.3]} 3... Nd5 {[%clk 0:02:58.9]}
4. Nc3 {[%clk 0:02:54.6]} 4... e6 {[%clk 0:02:59.3]} 5. Nxd5 {[%clk 0:02:51]}
5... exd5 {[%clk 0:03:00.2]} 6. d4 {[%clk 0:02:51.5]} 6... Nc6 {[%clk
0:03:00.8]} 7. dxc5 {[%clk 0:02:49.9]} 7... Bxc5 {[%clk 0:03:01.7]} 8. Qxd5
{[%clk 0:02:50.2]} 8... Qb6 {[%clk 0:03:02.2]} 9. Bc4 {[%clk 0:02:48.2]} 9...
Bxf2+ {[%clk 0:03:02.3]} 10. Ke2 {[%clk 0:02:48.5]} 10... O-O {[%clk 0:03:02.6]}
11. Rf1 {[%clk 0:02:47.4]} 11... Bc5 {[%clk 0:03:03]} 12. Ng5 {[%clk 0:02:42.6]}
12... Nd4+ {[%clk 0:03:03.4]} 13. Kd1 {[%clk 0:02:42.1]} 13... Ne6 {[%clk
0:03:04.3]} 14. Ne4 {[%clk 0:02:41.1]} 14... d6 {[%clk 0:03:02.1]} 15. exd6
{[%clk 0:02:22.5]} 15... Rd8 {[%clk 0:03:02.4]} 16. Bf4 {[%clk 0:02:18]} 16...
Qxb2 {[%clk 0:02:49.7]} 17. Be5 {[%clk 0:02:13.6]} 17... Bd4 {[%clk 0:02:18.3]}
18. Bxd4 {[%clk 0:02:08.4]} 18... Qxd4+ {[%clk 0:02:19.2]} 19. Qxd4 {[%clk
0:02:08.9]} 19... Nxd4 {[%clk 0:02:20.1]} 20. Rxf7 {[%clk 0:01:56.4]} 20... Be6
{[%clk 0:01:57.9]} 21. Bxe6 {[%clk 0:01:52.1]} 21... Nxe6 {[%clk 0:01:58.8]} 22.
Rxb7 {[%clk 0:01:51]} 22... Rac8 {[%clk 0:01:59.4]} 23. Rab1 {[%clk 0:01:35.8]}
23... Rc4 {[%clk 0:01:54.3]} 24. R1b4 {[%clk 0:01:33]} 24... Rxe4 {[%clk
0:01:45.5]} 25. Rxe4 {[%clk 0:01:17.5]} 25... Nc5 {[%clk 0:01:45.8]} 26. Ree7
{[%clk 0:01:15.7]} 26... Nxb7 {[%clk 0:01:45.9]} 27. Rxb7 {[%clk 0:01:14.4]}
27... Rxd6+ {[%clk 0:01:46.6]} 28. Kc1 {[%clk 0:01:13.8]} 28... Ra6 {[%clk
0:01:47.2]} 29. Kb2 {[%clk 0:01:13.5]} 29... h5 {[%clk 0:01:42.1]} 30. Kb3
{[%clk 0:01:12.8]} 30... Kh7 {[%clk 0:01:41.7]} 31. c4 {[%clk 0:01:12.7]} 31...
Kh6 {[%clk 0:01:41.9]} 32. c5 {[%clk 0:01:12.7]} 32... g5 {[%clk 0:01:35.1]} 33.
a4 {[%clk 0:01:10]} 33... g4 {[%clk 0:01:33.5]} 34. Kb4 {[%clk 0:01:06.7]} 34...
Kg5 {[%clk 0:01:33.9]} 35. Kb5 {[%clk 0:01:06]} 35... Re6 {[%clk 0:01:32.5]} 36.
c6 {[%clk 0:01:06.2]} 36... a6+ {[%clk 0:01:26.8]} 37. Kb6 {[%clk 0:01:05.8]}
37... Kf4 {[%clk 0:01:25]} 38. Rf7+ {[%clk 0:01:04.7]} 38... Ke3 {[%clk
0:01:25.1]} 39. Kb7 {[%clk 0:01:04.7]} 39... Re4 {[%clk 0:01:23.7]} 40. c7
{[%clk 0:00:56]} 40... Rb4+ {[%clk 0:01:24.1]} 41. Kxa6 {[%clk 0:00:51.5]} 41...
Rxa4+ {[%clk 0:01:24.5]} 42. Kb5 {[%clk 0:00:51]} 42... Ra8 {[%clk 0:01:20.4]}
43. Kb6 {[%clk 0:00:51.2]} 1-0

[Event "Early-Titled-Tuesday-Blitz-January-23-2024"]
[Site "Chess.com"]
[Date "2024.01.23"]
[Round "4"]
[White "mertfelin"]
[Black "Grindaveci"]
[Result "1-0"]
[WhiteElo "2285"]
[BlackElo "2497"]
[TimeControl "180+1"]
[EndTime "8:37:05 PST"]
[Termination "mertfelin won by resignation"]

1. e4 {[%clk 0:02:55.4]} 1... e5 {[%clk 0:02:59.8]} 2. Nf3 {[%clk 0:02:55.5]}
2... Nc6 {[%clk 0:02:59.5]} 3. Bc4 {[%clk 0:02:55.8]} 3... Nf6 {[%clk
0:02:59.7]} 4. d3 {[%clk 0:02:56.3]} 4... Bc5 {[%clk 0:02:59.6]} 5. c3 {[%clk
0:02:56.5]} 5... d6 {[%clk 0:02:59.8]} 6. O-O {[%clk 0:02:55.9]} 6... a6 {[%clk
0:02:58.2]} 7. Bb3 {[%clk 0:02:55.9]} 7... Ba7 {[%clk 0:02:58]} 8. Re1 {[%clk
0:02:56.3]} 8... O-O {[%clk 0:02:57]} 9. h3 {[%clk 0:02:56.5]} 9... Be6 {[%clk
0:02:55.5]} 10. Nbd2 {[%clk 0:02:55.5]} 10... Ne7 {[%clk 0:02:50.6]} 11. Nf1
{[%clk 0:02:52.8]} 11... Ng6 {[%clk 0:02:50.1]} 12. d4 {[%clk 0:02:52.3]} 12...
Re8 {[%clk 0:02:37.4]} 13. Ng3 {[%clk 0:02:52.3]} 13... h6 {[%clk 0:02:36.8]}
14. Be3 {[%clk 0:02:47.5]} 14... exd4 {[%clk 0:02:32]} 15. Bxd4 {[%clk
0:02:46.2]} 15... Qd7 {[%clk 0:02:21.3]} 16. Bxa7 {[%clk 0:02:39.1]} 16... Rxa7
{[%clk 0:02:21.2]} 17. Bc2 {[%clk 0:02:39.9]} 17... Nf4 {[%clk 0:02:16.5]} 18.
Qd2 {[%clk 0:02:35.9]} 18... g5 {[%clk 0:02:15.1]} 19. e5 {[%clk 0:02:27.8]}
19... Bxh3 {[%clk 0:01:59.8]} 20. exf6 {[%clk 0:02:08.1]} 20... Raa8 {[%clk
0:01:59.3]} 21. Re7 {[%clk 0:02:05.7]} 21... Rxe7 {[%clk 0:01:54.2]} 22. fxe7
{[%clk 0:02:06.6]} 22... Bxg2 {[%clk 0:01:54.5]} 23. Qe3 {[%clk 0:01:53.1]}
23... Re8 {[%clk 0:01:17.5]} 24. Re1 {[%clk 0:01:51.2]} 24... Nd5 {[%clk
0:00:54.5]} 25. Qe4 {[%clk 0:01:42.5]} 25... Nf6 {[%clk 0:00:53]} 26. Qxb7
{[%clk 0:01:38.9]} 26... d5 {[%clk 0:00:43.6]} 27. Kxg2 {[%clk 0:01:34.2]} 27...
Rxe7 {[%clk 0:00:36]} 28. Rxe7 {[%clk 0:01:32.8]} 28... Qxe7 {[%clk 0:00:36.9]}
29. Qc6 {[%clk 0:01:13.3]} 29... Ng4 {[%clk 0:00:28.9]} 30. Qa8+ {[%clk
0:01:04.1]} 1-0

[Event "Early-Titled-Tuesday-Blitz-January-23-2024"]
[Site "Chess.com"]
[Date "2024.01.23"]
[Round "4"]
[White "Alexei_Gubajdullin"]
[Black "Raud100"]
[Result "1-0"]
[WhiteElo "2581"]
[BlackElo "2385"]
[TimeControl "180+1"]
[EndTime "8:37:15 PST"]
[Termination "Alexei_Gubajdullin won by resignation"]

1. e4 {[%clk 0:02:56.6]} 1... d6 {[%clk 0:03:00.1]} 2. d4 {[%clk 0:02:56.4]}
2... Nf6 {[%clk 0:03:01]} 3. Nc3 {[%clk 0:02:56.9]} 3... g6 {[%clk 0:03:00.9]}
4. Be3 {[%clk 0:02:56.6]} 4... c6 {[%clk 0:03:01.4]} 5. Qd2 {[%clk 0:02:56.9]}
5... b5 {[%clk 0:03:02.1]} 6. f3 {[%clk 0:02:56.6]} 6... Nbd7 {[%clk 0:03:02.7]}
7. O-O-O {[%clk 0:02:56.6]} 7... Nb6 {[%clk 0:03:03.3]} 8. h4 {[%clk 0:02:56.5]}
8... Rb8 {[%clk 0:03:02.5]} 9. g4 {[%clk 0:02:56.5]} 9... h5 {[%clk 0:03:02.3]}
10. g5 {[%clk 0:02:55.4]} 10... Nfd7 {[%clk 0:03:02.9]} 11. f4 {[%clk
0:02:55.7]} 11... Bg7 {[%clk 0:03:02.7]} 12. f5 {[%clk 0:02:55.3]} 12... O-O
{[%clk 0:03:02.3]} 13. Nh3 {[%clk 0:02:54.2]} 13... Re8 {[%clk 0:03:02]} 14. Nf4
{[%clk 0:02:54.1]} 14... Nf8 {[%clk 0:03:02.6]} 15. b3 {[%clk 0:02:49.2]} 15...
a5 {[%clk 0:03:02]} 16. Bh3 {[%clk 0:02:35.5]} 16... a4 {[%clk 0:02:56.6]} 17.
Nce2 {[%clk 0:02:33.6]} 17... axb3 {[%clk 0:02:53.6]} 18. cxb3 {[%clk
0:02:33.5]} 18... Ra8 {[%clk 0:02:50.2]} 19. Kb1 {[%clk 0:02:32.3]} 19... Nbd7
{[%clk 0:02:40.8]} 20. fxg6 {[%clk 0:02:19.8]} 20... fxg6 {[%clk 0:02:41.7]} 21.
Ne6 {[%clk 0:02:20.4]} 21... Nxe6 {[%clk 0:02:40.9]} 22. Bxe6+ {[%clk
0:02:20.1]} 22... Kh7 {[%clk 0:02:41.2]} 23. Bf7 {[%clk 0:02:08.3]} 23... Rf8
{[%clk 0:02:39]} 24. Rhf1 {[%clk 0:02:08]} 24... Nb6 {[%clk 0:02:13.2]} 25. Qc2
{[%clk 0:02:06.6]} 25... e5 {[%clk 0:01:59.9]} 26. dxe5 {[%clk 0:01:58.9]} 26...
Bxe5 {[%clk 0:01:59.4]} 27. Bxb6 {[%clk 0:01:58.5]} 27... Qxb6 {[%clk
0:01:58.1]} 28. Bxg6+ {[%clk 0:01:58.6]} 28... Kg7 {[%clk 0:01:46.2]} 29. Rxf8
{[%clk 0:01:57]} 29... Kxf8 {[%clk 0:01:47.1]} 30. Rf1+ {[%clk 0:01:56.3]} 30...
Kg7 {[%clk 0:01:47.2]} 31. Bxh5 {[%clk 0:01:52.6]} 31... Be6 {[%clk 0:01:46.7]}
32. Nf4 {[%clk 0:01:43.6]} 32... Bg8 {[%clk 0:00:58.4]} 33. Nd3 {[%clk
0:01:43.1]} 33... Bd4 {[%clk 0:00:57.1]} 34. e5 {[%clk 0:01:42.3]} 34... Rf8
{[%clk 0:00:42.3]} 35. Rxf8 {[%clk 0:01:38.2]} 35... Kxf8 {[%clk 0:00:43.2]} 36.
exd6 {[%clk 0:01:33.2]} 36... Be6 {[%clk 0:00:37.6]} 37. Qe2 {[%clk 0:01:29.6]}
37... Be3 {[%clk 0:00:22.3]} 38. Qf3+ {[%clk 0:01:19]} 38... Kg7 {[%clk
0:00:22.1]} 39. Qf6+ {[%clk 0:01:17.5]} 1-0

[Event "Early-Titled-Tuesday-Blitz-January-23-2024"]
[Site "Chess.com"]
[Date "2024.01.23"]
[Round "4"]
[White "Korchmar_Vasiliy"]
[Black "GroovyKettle"]
[Result "0-1"]
[WhiteElo "2721"]
[BlackElo "2976"]
[TimeControl "180+1"]
[EndTime "8:37:20 PST"]
[Termination "GroovyKettle won by resignation"]

1. e4 {[%clk 0:03:00.9]} 1... e5 {[%clk 0:02:56.2]} 2. Nf3 {[%clk 0:03:00.8]}
2... Nc6 {[%clk 0:02:56.5]} 3. Bc4 {[%clk 0:03:00.7]} 3... Bc5 {[%clk
0:02:54.3]} 4. c3 {[%clk 0:03:00.3]} 4... Nf6 {[%clk 0:02:53.5]} 5. d3 {[%clk
0:03:00.8]} 5... h6 {[%clk 0:02:52.8]} 6. b4 {[%clk 0:02:56.6]} 6... Bb6 {[%clk
0:02:52.7]} 7. a4 {[%clk 0:02:56.4]} 7... a6 {[%clk 0:02:47.1]} 8. O-O {[%clk
0:02:56.4]} 8... d6 {[%clk 0:02:47.1]} 9. Nbd2 {[%clk 0:02:53.4]} 9... a5 {[%clk
0:02:44.6]} 10. b5 {[%clk 0:02:50.4]} 10... Ne7 {[%clk 0:02:44.6]} 11. Re1
{[%clk 0:02:49.4]} 11... O-O {[%clk 0:02:44.6]} 12. Nf1 {[%clk 0:02:49]} 12...
c6 {[%clk 0:02:43.6]} 13. Be3 {[%clk 0:02:27.2]} 13... Bc7 {[%clk 0:02:40]} 14.
Ng3 {[%clk 0:02:16.7]} 14... d5 {[%clk 0:02:39.3]} 15. Bb3 {[%clk 0:02:01.1]}
15... Ng6 {[%clk 0:02:39.2]} 16. h3 {[%clk 0:01:53.3]} 16... Re8 {[%clk
0:02:39.2]} 17. Qc2 {[%clk 0:01:45.6]} 17... Be6 {[%clk 0:02:32.9]} 18. bxc6
{[%clk 0:01:43.1]} 18... bxc6 {[%clk 0:02:32.9]} 19. Rad1 {[%clk 0:01:36.8]}
19... Qc8 {[%clk 0:02:32.9]} 20. d4 {[%clk 0:01:33]} 20... exd4 {[%clk
0:02:22.6]} 21. Nxd4 {[%clk 0:01:27.5]} 21... Bxg3 {[%clk 0:02:21.9]} 22. fxg3
{[%clk 0:01:25.8]} 22... Nxe4 {[%clk 0:02:21.5]} 23. Nxe6 {[%clk 0:00:55.8]}
23... Qxe6 {[%clk 0:02:03.5]} 24. c4 {[%clk 0:00:53.8]} 24... Rac8 {[%clk
0:01:43.4]} 25. cxd5 {[%clk 0:00:33]} 25... cxd5 {[%clk 0:01:44.3]} 26. Qd3
{[%clk 0:00:30.7]} 26... Rc3 {[%clk 0:01:41]} 27. Qb5 {[%clk 0:00:30.8]} 27...
Nd6 {[%clk 0:01:35.6]} 28. Bxd5 {[%clk 0:00:16]} 28... Nxb5 {[%clk 0:01:31.4]}
29. Bxe6 {[%clk 0:00:16.1]} 29... Rxe6 {[%clk 0:01:30.8]} 30. axb5 {[%clk
0:00:16]} 30... Rcxe3 {[%clk 0:01:29.4]} 31. Rxe3 {[%clk 0:00:16.4]} 31... Rxe3
{[%clk 0:01:30.3]} 32. Ra1 {[%clk 0:00:15.9]} 32... Rxg3 {[%clk 0:01:28.3]} 33.
Rxa5 {[%clk 0:00:15.7]} 33... Rb3 {[%clk 0:01:28.4]} 34. Kf2 {[%clk 0:00:13]}
34... Nf4 {[%clk 0:01:28.2]} 35. h4 {[%clk 0:00:11.8]} 35... g6 {[%clk
0:01:27.9]} 36. g3 {[%clk 0:00:11.6]} 36... Ne6 {[%clk 0:01:26.9]} 37. h5 {[%clk
0:00:08.5]} 37... Kg7 {[%clk 0:01:26.6]} 38. hxg6 {[%clk 0:00:08.5]} 38... Kxg6
{[%clk 0:01:27]} 39. Kg2 {[%clk 0:00:06.8]} 39... Kg7 {[%clk 0:01:27]} 40. Kh2
{[%clk 0:00:06.5]} 40... Nd4 {[%clk 0:01:27]} 0-1

[Event "Early-Titled-Tuesday-Blitz-January-23-2024"]
[Site "Chess.com"]
[Date "2024.01.23"]
[Round "4"]
[White "Tsyhanchuk_Stanislav"]
[Black "Nellichka"]
[Result "1/2-1/2"]
[WhiteElo "2286"]
[BlackElo "1938"]
[TimeControl "180+1"]
[EndTime "8:37:23 PST"]
[Termination "Game drawn by repetition"]

1. e4 {[%clk 0:03:00.4]} 1... e6 {[%clk 0:02:58.8]} 2. d4 {[%clk 0:02:59.6]}
2... d5 {[%clk 0:02:58.2]} 3. Nc3 {[%clk 0:02:59.9]} 3... Bb4 {[%clk 0:02:56.9]}
4. e5 {[%clk 0:02:59.1]} 4... c5 {[%clk 0:02:56.4]} 5. Bd2 {[%clk 0:02:58.7]}
5... Ne7 {[%clk 0:02:48.4]} 6. Nb5 {[%clk 0:02:58.3]} 6... Bxd2+ {[%clk
0:02:39.5]} 7. Qxd2 {[%clk 0:02:59.2]} 7... O-O {[%clk 0:02:29.3]} 8. dxc5
{[%clk 0:02:54.1]} 8... Nd7 {[%clk 0:02:27.8]} 9. Nf3 {[%clk 0:02:44.9]} 9...
Nxc5 {[%clk 0:02:20.8]} 10. Bd3 {[%clk 0:02:32.2]} 10... Qb6 {[%clk 0:02:12.7]}
11. O-O-O {[%clk 0:02:18.2]} 11... f6 {[%clk 0:02:08.1]} 12. exf6 {[%clk
0:02:06.3]} 12... Rxf6 {[%clk 0:02:04.7]} 13. Rhe1 {[%clk 0:01:58.5]} 13... Bd7
{[%clk 0:02:02.5]} 14. Nbd4 {[%clk 0:01:35.2]} 14... Rc8 {[%clk 0:01:55.6]} 15.
Kb1 {[%clk 0:01:15.1]} 15... Nxd3 {[%clk 0:01:39.7]} 16. Qxd3 {[%clk 0:01:13]}
16... Nc6 {[%clk 0:01:39.9]} 17. Ng5 {[%clk 0:00:44.3]} 17... g6 {[%clk
0:01:20.5]} 18. Ngxe6 {[%clk 0:00:27.7]} 18... Nb4 {[%clk 0:01:11.1]} 19. Qb3
{[%clk 0:00:20.5]} 19... Bxe6 {[%clk 0:01:03.8]} 20. Nxe6 {[%clk 0:00:17.7]}
20... Nxc2 {[%clk 0:01:01]} 21. Qxd5 {[%clk 0:00:08.4]} 21... Na3+ {[%clk
0:00:55.5]} 22. Ka1 {[%clk 0:00:06.5]} 22... Nc2+ {[%clk 0:00:55.2]} 23. Kb1
{[%clk 0:00:06.7]} 23... Na3+ {[%clk 0:00:54.8]} 24. Ka1 {[%clk 0:00:03.8]}
24... Nc2+ {[%clk 0:00:54.4]} 25. Kb1 {[%clk 0:00:04.3]} 1/2-1/2

[Event "Early-Titled-Tuesday-Blitz-January-23-2024"]
[Site "Chess.com"]
[Date "2024.01.23"]
[Round "4"]
[White "OneTrickPony_82"]
[Black "Chempiblinka"]
[Result "1-0"]
[WhiteElo "2523"]
[BlackElo "2315"]
[TimeControl "180+1"]
[EndTime "8:37:24 PST"]
[Termination "OneTrickPony_82 won on time"]

1. d4 {[%clk 0:03:00.9]} 1... Nf6 {[%clk 0:02:59]} 2. c4 {[%clk 0:03:01.2]} 2...
g6 {[%clk 0:02:59.2]} 3. Nc3 {[%clk 0:03:00.4]} 3... Bg7 {[%clk 0:03:00.1]} 4.
e4 {[%clk 0:02:59.9]} 4... d6 {[%clk 0:03:00.8]} 5. Nf3 {[%clk 0:03:00.3]} 5...
O-O {[%clk 0:03:01.3]} 6. Be2 {[%clk 0:03:00.7]} 6... Bg4 {[%clk 0:03:00.8]} 7.
Be3 {[%clk 0:02:59.5]} 7... Nfd7 {[%clk 0:03:00.7]} 8. h4 {[%clk 0:02:59.9]}
8... h5 {[%clk 0:02:41.3]} 9. Ng5 {[%clk 0:02:59.4]} 9... Bxe2 {[%clk
0:02:30.7]} 10. Qxe2 {[%clk 0:02:59.3]} 10... c5 {[%clk 0:02:30.7]} 11. d5
{[%clk 0:02:57.5]} 11... Ne5 {[%clk 0:02:20.3]} 12. f3 {[%clk 0:02:52.7]} 12...
Na6 {[%clk 0:01:52.2]} 13. g4 {[%clk 0:02:44.8]} 13... hxg4 {[%clk 0:01:36.1]}
14. h5 {[%clk 0:02:23.1]} 14... gxf3 {[%clk 0:01:27.8]} 15. Qh2 {[%clk
0:02:15.9]} 15... f2+ {[%clk 0:01:16.4]} 16. Ke2 {[%clk 0:02:04.7]} 16... f5
{[%clk 0:00:22.6]} 17. hxg6 {[%clk 0:01:44.3]} 17... Rf6 {[%clk 0:00:19.3]} 18.
Ne6 {[%clk 0:01:35.7]} 18... Rxe6 {[%clk 0:00:16.5]} 19. dxe6 {[%clk 0:01:35.8]}
19... Ng4 {[%clk 0:00:08]} 20. Qh7+ {[%clk 0:01:35.8]} 20... Kf8 {[%clk
0:00:08.5]} 21. Nd5 {[%clk 0:01:18.3]} 21... Nb4 {[%clk 0:00:07.1]} 22. Bg5
{[%clk 0:01:13]} 22... Nxd5 {[%clk 0:00:06.9]} 23. exd5 {[%clk 0:01:07.4]} 23...
b5 {[%clk 0:00:05.1]} 24. Rhf1 {[%clk 0:00:52.9]} 24... b4 {[%clk 0:00:04]} 25.
Rxf2 {[%clk 0:00:53.3]} 1-0

[Event "Early-Titled-Tuesday-Blitz-January-23-2024"]
[Site "Chess.com"]
[Date "2024.01.23"]
[Round "4"]
[White "eljanov"]
[Black "OparinGrigoriy"]
[Result "1-0"]
[WhiteElo "2866"]
[BlackElo "3024"]
[TimeControl "180+1"]
[EndTime "8:37:27 PST"]
[Termination "eljanov won by resignation"]

1. e4 {[%clk 0:03:00.9]} 1... c5 {[%clk 0:02:59.6]} 2. Nf3 {[%clk 0:02:59.3]}
2... e6 {[%clk 0:02:59.7]} 3. d4 {[%clk 0:02:58.6]} 3... cxd4 {[%clk 0:03:00.6]}
4. Nxd4 {[%clk 0:02:59.1]} 4... Nf6 {[%clk 0:03:00.7]} 5. Nc3 {[%clk 0:02:58.7]}
5... Nc6 {[%clk 0:03:01.1]} 6. a3 {[%clk 0:02:57.3]} 6... Be7 {[%clk 0:02:59.6]}
7. Be3 {[%clk 0:02:53.8]} 7... O-O {[%clk 0:02:57.6]} 8. Be2 {[%clk 0:02:53.9]}
8... d6 {[%clk 0:02:56]} 9. Qd3 {[%clk 0:02:52.8]} 9... Bd7 {[%clk 0:02:50]} 10.
f4 {[%clk 0:02:43.9]} 10... e5 {[%clk 0:02:48.3]} 11. Nxc6 {[%clk 0:02:39.5]}
11... Bxc6 {[%clk 0:02:48.5]} 12. O-O-O {[%clk 0:02:38.3]} 12... Qc8 {[%clk
0:02:34.5]} 13. g4 {[%clk 0:02:29.6]} 13... Nxg4 {[%clk 0:02:23.7]} 14. Bxg4
{[%clk 0:02:28.6]} 14... Qxg4 {[%clk 0:02:23.8]} 15. Rhg1 {[%clk 0:02:28.9]}
15... Qh4 {[%clk 0:02:17.1]} 16. f5 {[%clk 0:02:11.7]} 16... Rad8 {[%clk
0:01:51.7]} 17. Qe2 {[%clk 0:02:06.7]} 17... g6 {[%clk 0:01:28.2]} 18. Rg4
{[%clk 0:02:04.9]} 18... Qh5 {[%clk 0:01:28.5]} 19. Qf3 {[%clk 0:01:53.7]} 19...
Kh8 {[%clk 0:01:22.8]} 20. f6 {[%clk 0:01:50.4]} 20... Qxg4 {[%clk 0:01:08.1]}
21. Qxg4 {[%clk 0:01:49.2]} 21... Bxf6 {[%clk 0:01:08.7]} 22. Bg5 {[%clk
0:01:46.3]} 22... Bxg5+ {[%clk 0:01:06.7]} 23. Qxg5 {[%clk 0:01:46.6]} 23... f6
{[%clk 0:01:07.6]} 24. Qe3 {[%clk 0:01:45.9]} 24... b6 {[%clk 0:01:05.6]} 25.
Nd5 {[%clk 0:01:43.8]} 25... Rd7 {[%clk 0:01:03.2]} 26. h4 {[%clk 0:01:43]}
26... Kg7 {[%clk 0:00:56]} 27. h5 {[%clk 0:01:36.9]} 27... g5 {[%clk 0:00:56.1]}
28. Qf3 {[%clk 0:01:35.7]} 28... Rdf7 {[%clk 0:00:52.4]} 29. Ne3 {[%clk
0:01:33.1]} 29... f5 {[%clk 0:00:48.8]} 30. Rxd6 {[%clk 0:01:28.3]} 30... Bxe4
{[%clk 0:00:48.6]} 31. Qg3 {[%clk 0:01:24.7]} 31... Kg8 {[%clk 0:00:41.5]} 32.
h6 {[%clk 0:01:22.6]} 32... f4 {[%clk 0:00:36.5]} 33. Qxg5+ {[%clk 0:01:19.8]}
33... Bg6 {[%clk 0:00:37.1]} 34. Ng4 {[%clk 0:01:04.8]} 34... f3 {[%clk
0:00:37.2]} 35. Nxe5 {[%clk 0:00:57]} 1-0

[Event "Early-Titled-Tuesday-Blitz-January-23-2024"]
[Site "Chess.com"]
[Date "2024.01.23"]
[Round "4"]
[White "Horokoskii"]
[Black "GrotBchess"]
[Result "0-1"]
[WhiteElo "2071"]
[BlackElo "2308"]
[TimeControl "180+1"]
[EndTime "8:37:28 PST"]
[Termination "GrotBchess won on time"]

1. e4 {[%clk 0:03:00.9]} 1... e6 {[%clk 0:02:57.9]} 2. d4 {[%clk 0:02:59.2]}
2... d5 {[%clk 0:02:57.6]} 3. Nd2 {[%clk 0:02:59.2]} 3... Nf6 {[%clk 0:02:56.8]}
4. e5 {[%clk 0:02:58.2]} 4... Nfd7 {[%clk 0:02:57.3]} 5. Bd3 {[%clk 0:02:51.2]}
5... c5 {[%clk 0:02:56.9]} 6. c3 {[%clk 0:02:47.4]} 6... Nc6 {[%clk 0:02:56.2]}
7. Ne2 {[%clk 0:02:45.6]} 7... Rb8 {[%clk 0:02:55]} 8. O-O {[%clk 0:02:44.3]}
8... b5 {[%clk 0:02:54.3]} 9. a3 {[%clk 0:02:33.8]} 9... a5 {[%clk 0:02:51.7]}
10. Nf3 {[%clk 0:02:23.4]} 10... Be7 {[%clk 0:02:43.9]} 11. Be3 {[%clk
0:02:01.1]} 11... b4 {[%clk 0:02:40.1]} 12. axb4 {[%clk 0:01:58.7]} 12... axb4
{[%clk 0:02:40]} 13. Qc1 {[%clk 0:01:41.3]} 13... bxc3 {[%clk 0:02:37.6]} 14.
bxc3 {[%clk 0:01:40.1]} 14... Na5 {[%clk 0:02:26.4]} 15. Qd1 {[%clk 0:01:26.9]}
15... c4 {[%clk 0:02:18.7]} 16. Bc2 {[%clk 0:01:25.1]} 16... Bb7 {[%clk
0:02:11.8]} 17. Qd2 {[%clk 0:01:13.8]} 17... Bc6 {[%clk 0:02:09]} 18. Bg5 {[%clk
0:01:12.3]} 18... Bxg5 {[%clk 0:02:01.3]} 19. Qxg5 {[%clk 0:01:11.6]} 19... Qxg5
{[%clk 0:01:58.2]} 20. Nxg5 {[%clk 0:01:12.1]} 20... Nb3 {[%clk 0:01:57.8]} 21.
Ra3 {[%clk 0:00:59.8]} 21... h6 {[%clk 0:01:54.8]} 22. Nf3 {[%clk 0:00:55.2]}
22... O-O {[%clk 0:01:53.4]} 23. Bxb3 {[%clk 0:00:45.9]} 23... Rxb3 {[%clk
0:01:51.6]} 24. Rxb3 {[%clk 0:00:44.9]} 24... cxb3 {[%clk 0:01:51.7]} 25. Rb1
{[%clk 0:00:45.2]} 25... Rb8 {[%clk 0:01:49.9]} 26. Nc1 {[%clk 0:00:45.3]} 26...
Ba4 {[%clk 0:01:45.8]} 27. Nd2 {[%clk 0:00:45.7]} 27... b2 {[%clk 0:01:40.9]}
28. Na2 {[%clk 0:00:39.8]} 28... Bc2 {[%clk 0:01:39.5]} 29. Re1 {[%clk
0:00:34.4]} 29... b1=Q {[%clk 0:01:28.9]} 30. Nxb1 {[%clk 0:00:31.9]} 30... Rxb1
{[%clk 0:01:29]} 31. Rxb1 {[%clk 0:00:30.7]} 31... Bxb1 {[%clk 0:01:29.9]} 32.
Nb4 {[%clk 0:00:30.8]} 32... Nb6 {[%clk 0:01:29.7]} 33. Kf1 {[%clk 0:00:27.9]}
33... Nc4 {[%clk 0:01:29]} 34. Ke2 {[%clk 0:00:27.7]} 34... Kf8 {[%clk
0:01:27.2]} 35. Kd1 {[%clk 0:00:17.1]} 35... Ke8 {[%clk 0:01:26]} 36. Kc1 {[%clk
0:00:17.2]} 36... Bg6 {[%clk 0:01:23.1]} 37. Nd3 {[%clk 0:00:08.9]} 37... Bxd3
{[%clk 0:01:21.8]} 0-1

[Event "Early-Titled-Tuesday-Blitz-January-23-2024"]
[Site "Chess.com"]
[Date "2024.01.23"]
[Round "4"]
[White "AvitalBor"]
[Black "jhedigm"]
[Result "0-1"]
[WhiteElo "2778"]
[BlackElo "2573"]
[TimeControl "180+1"]
[EndTime "8:37:30 PST"]
[Termination "jhedigm won by resignation"]

1. e4 {[%clk 0:03:00.9]} 1... c5 {[%clk 0:02:55.9]} 2. Nc3 {[%clk 0:02:58.4]}
2... a6 {[%clk 0:02:54.8]} 3. g3 {[%clk 0:02:52.5]} 3... d6 {[%clk 0:02:52]} 4.
Bg2 {[%clk 0:02:52.1]} 4... g6 {[%clk 0:02:50.6]} 5. d4 {[%clk 0:02:44.4]} 5...
Nd7 {[%clk 0:02:42.4]} 6. Be3 {[%clk 0:02:36.4]} 6... cxd4 {[%clk 0:02:39.6]} 7.
Bxd4 {[%clk 0:02:34.8]} 7... Ngf6 {[%clk 0:02:38.9]} 8. Nf3 {[%clk 0:02:32.3]}
8... Bg7 {[%clk 0:02:39.2]} 9. e5 {[%clk 0:02:30.1]} 9... dxe5 {[%clk
0:02:37.8]} 10. Nxe5 {[%clk 0:02:31]} 10... O-O {[%clk 0:02:37.1]} 11. O-O
{[%clk 0:02:30.2]} 11... Qc7 {[%clk 0:02:33.6]} 12. Qe2 {[%clk 0:02:18.2]} 12...
e6 {[%clk 0:02:21.6]} 13. Rad1 {[%clk 0:02:06.6]} 13... Nb6 {[%clk 0:01:50.1]}
14. a4 {[%clk 0:01:50.5]} 14... Nbd5 {[%clk 0:01:48.7]} 15. Nxd5 {[%clk
0:01:44.8]} 15... exd5 {[%clk 0:01:49.6]} 16. c4 {[%clk 0:01:25.8]} 16... Be6
{[%clk 0:01:44.7]} 17. Rc1 {[%clk 0:01:15.8]} 17... dxc4 {[%clk 0:01:34.1]} 18.
Nxc4 {[%clk 0:01:16.7]} 18... Rac8 {[%clk 0:01:31.4]} 19. b3 {[%clk 0:01:02]}
19... b5 {[%clk 0:01:27.8]} 20. axb5 {[%clk 0:00:37.9]} 20... axb5 {[%clk
0:01:28.7]} 21. Be5 {[%clk 0:00:37.8]} 21... Qa7 {[%clk 0:00:54.4]} 22. Nd6
{[%clk 0:00:26.5]} 22... Rxc1 {[%clk 0:00:52.1]} 23. Rxc1 {[%clk 0:00:27.4]}
23... Qa3 {[%clk 0:00:34.5]} 24. Nxb5 {[%clk 0:00:20.7]} 24... Qxc1+ {[%clk
0:00:32.4]} 0-1